bitfinex-derivatives/quotes_BNBF0:USTF0_20241225
["timestamp","ask_amount","ask_price","bid_price","bid_amount"]
[1735098041660,0.28321792,706.17,704.29,0.28397393]
[1735098041960,0.26067435,706.16,704.29,0.28397393]
[1735098042154,0.28322995,706.14,704.29,0.28397393]
[1735098042355,0.26067435,706.13,704.29,0.28397393]
[1735098042660,0.28324198,706.11,704.29,0.28397393]
[1735098044259,0.28324198,706.11,704.45,1.05005443]
[1735098044458,0.28324198,706.11,704.47,0.28390137]
[1735098045364,0.28324198,706.11,704.49,1.05005443]
[1735098045658,0.28324198,706.11,704.51,0.28388525]
[1735098046564,0.28324198,706.11,704.53,1.05005443]
[1735098046764,0.28324198,706.11,704.55,0.28386913]
[1735098055869,0.63809782,707.81,704.55,0.28386913]
[1735098056161,0.28262559,707.65,704.55,0.28386913]
[1735098056368,0.2604439,707.64,704.55,0.28386913]
[1735098056669,0.2604439,707.63,704.55,0.28386913]
[1735098056861,0.28262559,707.65,704.55,0.28386913]
[1735098057066,0.89856082,707.64,704.55,0.28386913]
[1735098057267,0.89856082,707.63,704.55,0.28386913]
[1735098057464,0.89856082,707.62,704.55,0.28386913]
[1735098057769,0.89856082,707.61,704.55,0.28386913]
[1735098057960,0.89856082,707.6,704.55,0.28386913]
[1735098058165,0.28262559,707.65,704.55,0.28386913]
[1735098058166,0.89856082,707.59,704.55,0.28386913]
[1735098058368,0.89856082,707.58,704.55,0.28386913]
[1735098058563,0.89856082,707.57,704.55,0.28386913]
[1735098058765,0.28262559,707.65,704.55,0.28386913]
[1735098058766,0.89856082,707.56,704.55,0.28386913]
[1735098059069,0.89856082,707.55,704.55,0.28386913]
[1735098059269,0.89856082,707.54,704.55,0.28386913]
[1735098059470,0.89856082,707.53,704.55,0.28386913]
[1735098059670,0.89867565,707.52,704.55,0.28386913]
[1735098059870,0.89867565,707.51,704.55,0.28386913]
[1735098060170,0.89867565,707.5,704.55,0.28386913]
[1735098060371,0.89867565,707.49,704.55,0.28386913]
[1735098060571,0.28274146,707.36,704.55,0.28386913]
[1735098060769,0.89867565,707.35,704.55,0.28386913]
[1735098061069,0.89867565,707.34,704.55,0.28386913]
[1735098061269,0.89867565,707.33,704.55,0.28386913]
[1735098061465,0.89867565,707.32,704.55,0.28386913]
[1735098061671,0.28280542,707.2,704.55,0.28386913]
[1735098061972,0.26048395,707.19,704.55,0.28386913]
[1735098062272,0.28286142,707.06,704.55,0.28386913]
[1735098062569,0.26050016,707.05,704.55,0.28386913]
[1735098062770,0.26050016,707.04,704.55,0.28386913]
[1735098062965,0.26050016,707.03,704.55,0.28386913]
[1735098063164,0.26050016,707.02,704.55,0.28386913]
[1735098063368,0.26050016,707.01,704.55,0.28386913]
[1735098063567,0.26050016,707.0,704.55,0.28386913]
[1735098063764,0.28286142,707.06,704.55,0.28386913]
[1735098063765,0.26050016,706.99,704.55,0.28386913]
[1735098063968,0.26050016,706.98,704.55,0.28386913]
[1735098064170,0.26050016,706.97,704.55,0.28386913]
[1735098064363,0.28286142,707.06,704.55,0.28386913]
[1735098064568,0.260503,707.05,704.55,0.28386913]
[1735098064771,0.28286142,707.06,704.55,0.28386913]
[1735098064772,0.260503,707.04,704.55,0.28386913]
[1735098065070,0.260503,707.03,704.55,0.28386913]
[1735098065271,0.260503,707.02,704.55,0.28386913]
[1735098065471,0.260503,707.01,704.55,0.28386913]
[1735098065771,0.260503,707.0,704.55,0.28386913]
[1735098065973,0.260503,706.99,704.55,0.28386913]
[1735098066164,0.260503,706.98,704.55,0.28386913]
[1735098066370,0.260503,706.97,704.55,0.28386913]
[1735098066567,0.260503,706.96,704.55,0.28386913]
[1735098066771,0.26049227,706.95,704.55,0.28386913]
[1735098066971,0.26049227,706.94,704.55,0.28386913]
[1735098067175,0.26047895,706.93,704.55,0.28386913]
[1735098067370,0.26047895,706.92,704.55,0.28386913]
[1735098067565,0.26047895,706.91,704.55,0.28386913]
[1735098067769,0.26047895,706.9,704.55,0.28386913]
[1735098067972,0.28286142,707.06,704.55,0.28386913]
[1735098067973,0.26047895,706.89,704.55,0.28386913]
[1735098068171,0.26047895,706.88,704.55,0.28386913]
[1735098068472,0.28297748,706.77,704.55,0.28386913]
[1735098068668,0.26047895,706.76,704.57,0.28386107]
[1735098068869,0.28297748,706.77,704.57,0.28386107]
[1735098068870,0.26047895,706.75,704.57,0.28386107]
[1735098069070,0.26047895,706.74,704.57,0.28386107]
[1735098069366,0.26047895,706.73,704.57,0.28386107]
[1735098069568,0.26047895,706.72,704.57,0.28386107]
[1735098069872,0.26047115,706.71,704.57,0.28386107]
[1735098070073,0.26047115,706.7,704.57,0.28386107]
[1735098070270,0.26047115,706.69,704.57,0.28386107]
[1735098070470,0.26047115,706.68,704.57,0.28386107]
[1735098070669,0.26046738,706.67,704.57,0.28386107]
[1735098070867,0.26046738,706.66,704.57,0.28386107]
[1735098071072,0.26046738,706.65,704.57,0.28386107]
[1735098071371,0.28297748,706.77,704.57,0.28386107]
[1735098071372,0.26046738,706.64,704.57,0.28386107]
[1735098071573,0.26046738,706.63,704.57,0.28386107]
[1735098071773,0.26046738,706.62,704.57,0.28386107]
[1735098071975,0.26046738,706.61,704.57,0.28386107]
[1735098072270,0.26046738,706.6,704.57,0.28386107]
[1735098072475,0.26046738,706.59,704.57,0.28386107]
[1735098072675,0.26049161,706.58,704.57,0.28386107]
[1735098072871,0.26049161,706.57,704.57,0.28386107]
[1735098073068,0.26049161,706.56,704.57,0.28386107]
[1735098073273,0.26049161,706.55,704.57,0.28386107]
[1735098073470,0.26049161,706.54,704.57,0.28386107]
[1735098073676,0.26049206,706.53,704.57,0.28386107]
[1735098073871,0.26049206,706.52,704.57,0.28386107]
[1735098074175,0.28297748,706.77,704.57,0.28386107]
[1735098074176,0.26049206,706.51,704.57,0.28386107]
[1735098074368,0.28297748,706.77,704.57,0.28386107]
[1735098074369,0.26049206,706.5,704.57,0.28386107]
[1735098074570,0.26049206,706.49,704.57,0.28386107]
[1735098074876,0.26049206,706.48,704.57,0.28386107]
[1735098075074,0.26049206,706.47,704.57,0.28386107]
[1735098075370,0.2605189,706.46,704.57,0.28386107]
[1735098075572,0.28297748,706.77,704.57,0.28386107]
[1735098075573,0.2605189,706.45,704.57,0.28386107]
[1735098075773,0.2605189,706.44,704.57,0.28386107]
[1735098075972,0.2605189,706.43,704.57,0.28386107]
[1735098076172,0.2605189,706.42,704.57,0.28386107]
[1735098076371,0.2605189,706.41,704.58,0.79360842]
[1735098076576,0.2605189,706.4,704.58,0.79360842]
[1735098076774,0.2605189,706.39,704.58,0.79360842]
[1735098076973,0.2605189,706.38,704.58,0.79360842]
[1735098077173,0.2605189,706.37,704.58,0.79360842]
[1735098077374,0.2605189,706.36,704.58,0.79360842]
[1735098077581,0.28297748,706.77,704.58,0.79360842]
[1735098077775,0.26050112,706.76,704.58,0.79360842]
[1735098078075,0.28297748,706.77,704.58,0.79360842]
[1735098078275,0.26050216,706.76,704.58,0.79360842]
[1735098078477,0.26050216,706.76,704.63,1.04150844]
[1735098079481,0.26050216,706.76,704.74,1.04150844]
[1735098079780,0.28297748,706.77,704.74,1.04150844]
[1735098079982,0.26050284,706.75,704.74,1.04150844]
[1735098080182,0.26050284,706.74,704.74,1.04150844]
[1735098080382,0.26050284,706.73,704.74,1.04150844]
[1735098080583,0.28297748,706.77,704.73,1.04150844]
[1735098080584,0.26050284,706.72,704.73,1.04150844]
[1735098080784,0.26050284,706.71,704.73,1.04150844]
[1735098081082,0.26050284,706.76,704.73,1.04150844]
[1735098081282,0.26050284,706.7,704.73,1.04150844]
[1735098081483,0.26050284,706.75,704.73,1.04150844]
[1735098081684,0.26050284,706.69,704.64,1.04150844]
[1735098081883,0.26050284,706.68,704.64,1.04150844]
[1735098082086,0.26050284,706.67,704.64,1.04150844]
[1735098082387,0.28297748,706.77,704.58,0.79360842]
[1735098082388,0.26050284,706.66,704.72,1.04150844]
[1735098082585,0.26050284,706.65,704.72,1.04150844]
[1735098082786,0.26050284,706.64,704.72,1.04150844]
[1735098083085,0.26050284,706.63,704.72,1.04150844]
[1735098083285,0.28297748,706.77,704.72,1.04150844]
[1735098083286,0.26040504,706.62,704.72,1.04150844]
[1735098083585,0.28297748,706.77,704.58,0.79360842]
[1735098083586,0.26040504,706.61,704.99,1.04150844]
[1735098083785,0.26036615,706.6,704.99,1.04150844]
[1735098083986,1.06213166,706.76,704.99,1.04150844]
[1735098084185,0.2603586,706.75,704.99,1.04150844]
[1735098084488,0.2603586,706.75,705.29,1.04150844]
[1735098084687,0.5433481,706.74,705.29,1.04150844]
[1735098084988,0.2603586,706.73,705.29,1.04150844]
[1735098085288,0.2829975,706.72,705.29,1.04150844]
[1735098085490,0.2603586,706.71,705.29,1.04150844]
[1735098085784,0.28300551,706.7,705.22,1.04150844]
[1735098086088,0.26036774,706.69,705.22,1.04150844]
[1735098086282,0.28301352,706.68,705.22,1.04150844]
[1735098086684,0.26039855,706.67,705.08,1.04150844]
[1735098087687,0.28302153,706.66,705.04,1.04150844]
[1735098087887,0.26039855,706.65,705.04,1.04150844]
[1735098088491,0.26039855,706.65,705.05,0.28366782]
[1735098088692,0.28302954,706.64,705.05,0.28366782]
[1735098088892,0.26039855,706.63,705.05,0.28366782]
[1735098089192,0.28303755,706.62,705.05,0.28366782]
[1735098089391,0.26039616,706.61,705.05,0.28366782]
[1735098089592,0.28304557,706.6,705.05,0.28366782]
[1735098089891,0.26039616,706.59,705.06,0.79360842]
[1735098090091,0.26039616,706.59,705.07,0.28365977]
[1735098090491,0.28305358,706.58,705.07,0.28365977]
[1735098090691,0.26039616,706.57,705.08,0.79360842]
[1735098090887,1.06213166,707.28,705.08,0.79360842]
[1735098090888,0.28306159,706.56,705.08,0.79360842]
[1735098091693,0.28306159,706.56,705.07,0.28365977]
[1735098096392,0.28306159,706.56,704.91,0.75666337]
[1735098096593,0.28306159,706.56,704.92,0.28372013]
[1735098098489,0.28306159,706.56,704.93,0.79484766]
[1735098101098,0.28306159,706.56,704.92,0.28372013]
[1735098104495,0.26044376,706.55,704.92,0.28372013]
[1735098104700,0.28306159,706.56,704.92,0.28372013]
[1735098105701,0.26043956,706.55,704.92,0.28372013]
[1735098106098,0.28306159,706.56,704.92,0.28372013]
[1735098106502,0.26044067,706.55,704.92,0.28372013]
[1735098108804,0.28306159,706.56,704.92,0.28372013]
[1735098108805,0.28307361,706.53,704.92,0.28372013]
[1735098109005,0.26044089,706.52,704.92,0.28372013]
[1735098109203,0.28308162,706.51,704.92,0.28372013]
[1735098109507,0.26043716,706.5,704.92,0.28372013]
[1735098109708,0.28308964,706.49,704.92,0.28372013]
[1735098109907,0.28308964,706.49,704.93,0.79354817]
[1735098109908,0.26043716,706.48,704.93,0.79354817]
[1735098110106,0.28309765,706.47,704.93,0.79354817]
[1735098113102,0.26045012,706.46,704.93,0.79354817]
[1735098113306,0.28309765,706.47,704.93,0.79354817]
[1735098113809,0.26045069,706.46,704.93,0.79354817]
[1735098114812,0.28310566,706.45,704.93,0.79354817]
[1735098115005,0.26045069,706.44,704.93,0.79354817]
[1735098116012,0.28311368,706.43,704.93,0.79354817]
[1735098116311,0.26045069,706.42,704.93,0.79354817]
[1735098116611,0.28312169,706.41,704.93,0.79354817]
[1735098116807,0.26045069,706.4,704.93,0.79354817]
[1735098117107,0.28312169,706.41,704.93,0.79354817]
[1735098117306,0.26045299,706.4,704.93,0.79354817]
[1735098117509,0.28312971,706.39,704.93,0.79354817]
[1735098117710,0.26045299,706.38,704.93,0.79354817]
[1735098118007,0.26045299,706.38,704.95,1.26238876]
[1735098118008,0.28313773,706.37,704.95,1.26238876]
[1735098118811,0.28313773,706.37,704.94,1.26238876]
[1735098119812,0.28313773,706.37,704.93,0.79354817]
[1735098121512,0.28313773,706.37,704.94,0.28371208]
[1735098125010,0.28313773,706.37,704.51,0.977596]
[1735098126710,0.28313773,706.37,704.39,1.63849936]
[1735098126711,0.28313773,706.37,704.48,2.14781421]
[1735098127610,0.28313773,706.37,704.43,2.14781421]
[1735098128717,0.28313773,706.37,704.45,2.14781421]
[1735098129921,0.28313773,706.37,705.09,1.05146912]
[1735098131617,0.28313773,706.37,704.95,1.05146912]
[1735098132919,0.28313773,706.37,704.96,1.05146912]
[1735098134025,0.28313773,706.37,702.88,2.14781421]
[1735098134026,0.28313773,706.37,705.0,1.05146912]
[1735098135325,0.28313773,706.37,705.01,1.05146912]
[1735098136223,0.28313773,706.37,705.02,1.05146912]
[1735098137221,0.28313773,706.37,705.03,1.05146912]
[1735098138228,0.28313773,706.37,705.02,1.05146912]
[1735098139423,0.28313773,706.37,705.16,1.05146912]
[1735098140525,0.28313773,706.37,705.18,1.05146912]
[1735098141627,0.28313773,706.37,705.19,1.05146912]
[1735098142425,0.28313773,706.37,700.64,2.46020607]
[1735098142426,0.28313773,706.37,705.2,1.05146912]
[1735098145332,0.28313773,706.37,704.19,2.14781421]
[1735098145333,0.28313773,706.37,705.23,1.05146912]
[1735098146533,0.28313773,706.37,705.2,1.05146912]
[1735098147533,0.28313773,706.37,704.09,2.14781421]
[1735098147534,0.28313773,706.37,705.19,1.05146912]
[1735098148732,0.28313773,706.37,705.17,1.05146912]
[1735098149837,0.28313773,706.37,705.1,1.05146912]
[1735098150938,0.28313773,706.37,705.16,1.05146912]
[1735098152036,0.28313773,706.37,705.21,1.05146912]
[1735098153033,0.28313773,706.37,705.2,1.05146912]
[1735098153835,0.28313773,706.37,705.2,0.48296428]
[1735098154035,0.28313773,706.37,700.64,2.46020607]
[1735098154036,0.28313773,706.37,705.12,0.48296428]
[1735098155138,0.28313773,706.37,704.61,2.43683351]
[1735098155437,0.28313773,706.37,704.62,2.62721147]
[1735098155836,0.28313773,706.37,704.64,0.28383287]
[1735098156339,0.28313773,706.37,704.74,1.26005956]
[1735098157371,0.28313773,706.37,705.01,1.05014824]
[1735098158841,0.28313773,706.37,704.99,1.05014824]
[1735098159834,0.28313773,706.37,704.94,1.05014824]
[1735098160639,0.28313773,706.37,704.91,1.05014824]
[1735098161535,0.28313773,706.37,705.37,1.04960735]
[1735098162639,0.28313773,706.37,705.39,1.04960735]
[1735098163540,0.28313773,706.37,705.41,1.04960735]
[1735098164439,0.28313773,706.37,705.36,1.04960735]
[1735098165440,0.28313773,706.37,705.39,1.04960735]
[1735098166740,0.28313773,706.37,705.3,1.04960735]
[1735098167740,0.28313773,706.37,705.28,1.04960735]
[1735098168542,0.28313773,706.37,705.29,1.04960735]
[1735098169742,0.28313773,706.37,705.3,1.04960735]
[1735098170441,0.28313773,706.37,704.65,0.79556636]
[1735098170442,0.28313773,706.37,705.27,1.04960735]
[1735098170837,0.2604739,706.36,705.27,1.04960735]
[1735098171042,0.28314574,706.35,705.27,1.04960735]
[1735098171444,0.28314574,706.35,705.34,1.04960735]
[1735098172242,0.28314574,706.35,705.17,1.04960735]
[1735098173448,0.28314574,706.35,705.15,1.04960735]
[1735098174643,0.28314574,706.35,704.66,0.28382482]
[1735098174644,0.28314574,706.35,705.14,1.04960735]
[1735098175547,0.28314574,706.35,705.13,1.04960735]
[1735098176550,0.28314574,706.35,705.16,1.04960735]
[1735098177449,0.28314574,706.35,705.1,1.04960735]
[1735098178543,0.28314574,706.35,704.67,0.79556636]
[1735098178544,0.28314574,706.35,705.09,1.04960735]
[1735098180544,0.28314574,706.35,704.69,0.79556636]
[1735098180545,0.28314574,706.35,705.07,1.04960735]
[1735098181848,0.28314574,706.35,705.05,1.04960735]
[1735098184052,0.28314574,706.35,705.04,1.04960735]
[1735098185154,0.28314574,706.35,705.03,1.04960735]
[1735098185856,0.28314574,706.35,705.0,1.04960735]
[1735098186957,0.28314574,706.35,705.03,1.04960735]
[1735098187754,0.28314574,706.35,705.0,1.04960735]
[1735098188860,0.28314574,706.35,704.68,0.28381676]
[1735098188861,0.28314574,706.35,704.99,1.04960735]
[1735098190259,0.28314574,706.35,704.96,1.04960735]
[1735098190657,0.26053118,706.34,704.96,1.04960735]
[1735098191358,0.26053118,706.34,704.94,1.04960735]
[1735098192162,0.26053118,706.34,704.68,0.28381676]
[1735098192163,0.26053118,706.34,704.89,1.04960735]
[1735098193077,0.26053118,706.34,704.82,1.04960735]
[1735098193266,0.26058176,706.33,704.82,1.04960735]
[1735098193561,0.26058176,706.32,704.82,1.04960735]
[1735098193765,0.26058176,706.31,704.82,1.04960735]
[1735098194062,0.26058176,706.31,704.68,0.28381676]
[1735098194063,0.26058721,706.3,704.8,1.04960735]
[1735098194262,0.26058721,706.29,704.8,1.04960735]
[1735098194470,0.26058721,706.28,704.8,1.04960735]
[1735098194762,0.28314574,706.35,704.73,1.04960735]
[1735098194763,0.26058721,706.27,704.73,1.04960735]
[1735098194963,0.26058721,706.26,704.73,1.04960735]
[1735098195162,0.26058721,706.25,704.73,1.04960735]
[1735098195363,0.26058721,706.24,704.73,1.04960735]
[1735098195564,0.26058721,706.23,704.73,1.04960735]
[1735098195757,0.26058721,706.22,704.73,1.04960735]
[1735098195962,0.26058721,706.21,704.7,1.04960735]
[1735098196162,0.26062565,706.2,704.7,1.04960735]
[1735098196362,0.26062565,706.19,704.7,1.04960735]
[1735098196664,0.26062565,706.18,704.68,0.28381676]
[1735098196857,0.26062565,706.17,704.68,0.28381676]
[1735098197059,0.26062565,706.16,704.68,0.28381676]
[1735098197260,0.26062565,706.15,704.68,0.28381676]
[1735098197463,0.26062565,706.14,704.68,0.28381676]
[1735098197664,0.26062565,706.13,704.6,1.04960735]
[1735098197860,0.26062565,706.12,704.59,1.04960735]
[1735098198063,0.26062565,706.11,704.59,1.04960735]
[1735098198265,0.26062565,706.1,704.59,1.04960735]
[1735098198461,0.26062565,706.09,704.59,1.04960735]
[1735098198764,0.26062565,706.08,704.59,1.04960735]
[1735098198965,0.26063395,706.34,704.55,1.04960735]
[1735098199266,0.26063395,706.33,704.55,1.04960735]
[1735098199466,0.26063395,706.32,704.55,1.04960735]
[1735098199666,0.26063395,706.31,704.55,1.04960735]
[1735098199863,0.26063395,706.3,704.55,1.04960735]
[1735098200066,0.26063395,706.3,703.92,1.26005956]
[1735098200067,0.26066228,706.29,704.51,1.04960735]
[1735098200270,0.28314574,706.35,704.51,1.04960735]
[1735098200271,0.26066228,706.34,704.51,1.04960735]
[1735098200466,0.26066228,706.33,704.51,1.04960735]
[1735098200668,0.26066228,706.32,704.51,1.04960735]
[1735098200867,0.26066228,706.31,704.51,1.04960735]
[1735098201069,0.26066228,706.3,704.41,1.04960735]
[1735098201269,0.26066228,706.29,704.41,1.04960735]
[1735098201469,0.28314574,706.35,704.41,1.04960735]
[1735098201769,0.26067831,706.34,704.41,1.04960735]
[1735098202069,0.26067831,706.34,703.63,2.14781421]
[1735098202070,0.26067831,706.34,704.37,1.04960735]
[1735098202266,0.28314574,706.35,704.37,1.04960735]
[1735098202497,0.26068266,706.34,704.37,1.04960735]
[1735098202865,0.26068266,706.33,704.37,1.04960735]
[1735098203068,0.26068266,706.32,704.31,1.04960735]
[1735098203263,0.26068266,706.31,704.31,1.04960735]
[1735098203466,0.26068266,706.3,704.31,1.04960735]
[1735098203664,0.26068266,706.29,704.31,1.04960735]
[1735098203869,0.26068266,706.28,704.31,1.04960735]
[1735098204070,0.28314574,706.35,704.27,1.04960735]
[1735098204071,0.26068266,706.27,704.27,1.04960735]
[1735098204270,0.28314574,706.35,704.27,1.04960735]
[1735098204466,0.26068239,706.34,704.27,1.04960735]
[1735098205271,0.26068239,706.34,704.28,1.04960735]
[1735098205968,0.26068239,706.34,704.29,0.28397393]
[1735098206171,0.26068239,706.34,704.3,1.04960735]
[1735098206972,0.28314574,706.35,704.3,1.04960735]
[1735098207169,0.26065529,706.34,704.3,1.04960735]
[1735098208368,0.26065529,706.34,704.31,0.28396586]
[1735098208574,0.26065529,706.34,704.31,1.33357321]
[1735098209170,0.28318985,706.24,704.31,1.33357321]
[1735098209370,0.26065529,706.23,704.34,1.04960735]
[1735098209575,0.28320188,706.21,704.34,1.04960735]
[1735098209875,0.26065529,706.2,704.34,1.04960735]
[1735098210572,0.28320188,706.21,704.31,0.28396586]
[1735098210573,0.26063887,706.19,704.31,0.28396586]
[1735098210770,0.54385278,706.18,704.31,0.28396586]
[1735098210973,0.28322193,706.16,704.31,0.28396586]
[1735098211276,0.26063887,706.15,704.31,0.28396586]
[1735098211874,0.28323396,706.13,704.31,0.28396586]
[1735098212170,0.26063887,706.12,704.35,1.04960735]
[1735098212367,0.28323396,706.13,704.35,1.04960735]
[1735098212368,0.28323396,706.13,704.36,0.2839457]
[1735098213473,0.28323396,706.13,704.42,1.04960735]
[1735098214673,0.28323396,706.13,704.44,1.04960735]
[1735098215779,0.28323396,706.13,704.69,1.04960735]
[1735098216885,0.28323396,706.13,704.7,1.04960735]
[1735098217673,0.26059795,706.12,704.7,1.04960735]
[1735098218086,0.28323396,706.13,704.61,1.04960735]
[1735098218402,0.26061152,706.12,704.61,1.04960735]
[1735098218981,0.26060827,706.11,704.62,1.04960735]
[1735098219180,1.06213166,706.89,704.62,1.04960735]
[1735098219181,0.54385426,706.1,704.62,1.04960735]
[1735098219376,0.28325402,706.08,704.62,1.04960735]
[1735098219881,0.28325402,706.08,704.56,1.04960735]
[1735098220978,0.28325402,706.08,704.59,1.04960735]
[1735098221881,0.28325402,706.08,704.66,1.04960735]
[1735098222984,0.28325402,706.08,704.45,0.28390943]
[1735098224484,0.26070534,706.07,704.45,0.28390943]
[1735098224885,0.28326605,706.05,704.45,0.28390943]
[1735098225182,0.26070534,706.04,704.45,0.28390943]
[1735098225684,0.28327809,706.02,704.45,0.28390943]
[1735098225877,0.26071309,706.01,704.45,0.28390943]
[1735098226083,0.28329013,705.99,704.45,0.28390943]
[1735098226278,0.26071309,705.98,704.45,0.28390943]
[1735098226586,1.06213166,706.81,704.45,0.28390943]
[1735098226587,0.28330217,705.96,704.45,0.28390943]
[1735098226783,0.26071229,705.95,704.45,0.28390943]
[1735098227084,0.2833142,705.93,704.45,0.28390943]
[1735098227279,0.26071229,705.92,704.56,1.04960735]
[1735098227683,0.28332625,705.9,704.56,1.04960735]
[1735098227884,0.26071229,705.89,704.56,1.04960735]
[1735098228085,0.28333829,705.87,704.6,1.04960735]
[1735098228285,0.26071229,705.86,704.6,1.04960735]
[1735098228586,0.28335033,705.84,704.6,1.04960735]
[1735098228781,0.26071229,705.83,704.6,1.04960735]
[1735098228983,0.28336237,705.81,704.6,1.04960735]
[1735098229181,0.26071229,705.8,704.6,1.04960735]
[1735098229385,0.26071229,705.8,704.45,0.28390943]
[1735098229386,0.28337442,705.78,704.62,1.04960735]
[1735098230384,0.28337442,705.78,704.52,1.04960735]
[1735098231488,0.28337442,705.78,704.48,1.04960735]
[1735098232389,0.28337442,705.78,704.49,1.04960735]
[1735098234392,0.28337442,705.78,704.5,1.04960735]
[1735098235389,0.28337442,705.78,704.49,1.04960735]
[1735098236297,0.28337442,705.78,704.47,1.04960735]
[1735098237389,0.28337442,705.78,704.48,1.04960735]
[1735098238096,0.28337442,705.78,704.49,1.04960735]
[1735098239199,0.26069519,705.77,704.47,1.04960735]
[1735098239394,0.28338245,705.76,704.47,1.04960735]
[1735098240099,0.26069076,705.75,704.57,1.04960735]
[1735098240400,0.28339048,705.74,704.57,1.04960735]
[1735098241200,0.28339048,705.74,704.61,1.04960735]
[1735098242198,0.28339048,705.74,704.45,0.28390943]
[1735098242199,0.28339048,705.74,704.58,1.04960735]
[1735098243899,0.28339048,705.74,704.45,0.28390943]
[1735098243900,0.28339048,705.74,704.59,1.04960735]
[1735098245693,0.28339048,705.74,704.63,1.04960735]
[1735098246899,0.28339048,705.74,704.65,1.04960735]
[1735098247999,0.28339048,705.74,704.45,0.28390943]
[1735098248000,0.28339048,705.74,704.69,1.04960735]
[1735098249399,0.28339048,705.74,704.68,1.04960735]
[1735098251402,0.28339048,705.74,704.8,1.04960735]
[1735098252500,0.28339048,705.74,704.62,1.04960735]
[1735098253501,0.28339048,705.74,704.68,1.04960735]
[1735098254502,0.28339048,705.74,704.64,1.04960735]
[1735098255400,0.28339048,705.74,704.45,0.28390943]
[1735098255401,0.28339048,705.74,704.65,1.04960735]
[1735098256401,0.28339048,705.74,704.66,1.04960735]
[1735098257798,0.28339048,705.74,704.65,1.04960735]
[1735098258701,0.28339048,705.74,704.45,0.28390943]
[1735098258702,0.28339048,705.74,704.73,1.04960735]
[1735098259605,0.28339048,705.74,704.76,1.04960735]
[1735098260806,0.28339048,705.74,704.72,1.04960735]
[1735098262506,0.28339048,705.74,704.8,1.04960735]
[1735098263907,0.28339048,705.74,704.81,1.04960735]
[1735098264902,0.28339048,705.74,704.58,1.04619577]
[1735098264903,0.28339048,705.74,704.82,1.04960735]
[1735098267110,0.28339048,705.74,704.74,1.04960735]
[1735098268311,0.28339048,705.74,704.73,1.04960735]
[1735098269415,0.28339048,705.74,704.45,0.28390943]
[1735098269416,0.28339048,705.74,704.75,1.04960735]
[1735098272719,0.28339048,705.74,704.63,1.04960735]
[1735098273918,0.28339048,705.74,704.67,1.04960735]
[1735098275115,0.28339048,705.74,704.63,1.04960735]
[1735098276619,0.28339048,705.74,704.45,0.28390943]
[1735098276620,0.28339048,705.74,704.74,1.04960735]
[1735098277616,0.28339048,705.74,704.66,1.04960735]
[1735098278817,0.28339048,705.74,704.62,1.04960735]
[1735098279717,0.28339048,705.74,704.57,1.04960735]
[1735098281120,0.28339048,705.74,704.55,1.04960735]
[1735098282220,0.28339048,705.74,704.52,1.04960735]
[1735098283718,0.28339048,705.74,704.51,1.04960735]
[1735098284619,0.28339048,705.74,704.25,1.04619577]
[1735098284620,0.28339048,705.74,704.46,1.04960735]
[1735098287025,0.28339048,705.74,704.43,1.04960735]
[1735098288421,0.28339048,705.74,704.41,1.04960735]
[1735098289621,0.28339048,705.74,704.13,1.04619577]
[1735098289622,0.28339048,705.74,704.42,1.04960735]
[1735098291917,0.28339048,705.74,704.39,1.04960735]
[1735098293520,0.26072358,705.73,704.39,1.04960735]
[1735098293721,0.28339048,705.74,704.39,1.04960735]
[1735098293922,0.28339048,705.74,704.45,1.04960735]
[1735098295020,0.28339048,705.74,704.54,1.04960735]
[1735098296123,0.28339048,705.74,704.52,1.04960735]
[1735098297320,0.28339048,705.74,704.48,1.04960735]
[1735098298126,0.28339048,705.74,704.46,1.04960735]
[1735098299324,0.28339048,705.74,704.45,1.04960735]
[1735098300524,0.28339048,705.74,704.44,1.04960735]
[1735098301523,0.28339048,705.74,704.17,1.04619577]
[1735098301524,0.28339048,705.74,704.48,1.04960735]
[1735098302531,0.28339048,705.74,704.47,1.04960735]
[1735098304032,0.28339048,705.74,703.74,2.14781421]
[1735098304033,0.28339048,705.74,704.55,1.04960735]
[1735098305526,0.28339048,705.74,704.78,1.04960735]
[1735098306533,0.28339048,705.74,704.83,1.04960735]
[1735098308033,0.28339048,705.74,704.86,1.04960735]
[1735098309635,0.28339048,705.74,704.84,1.04960735]
[1735098311732,0.28339048,705.74,704.81,1.04960735]
[1735098314042,0.28339048,705.74,704.78,1.04960735]
[1735098315238,1.06213166,706.93,704.75,1.04960735]
[1735098315440,0.28295346,706.83,704.75,1.04960735]
[1735098315738,0.26052789,706.82,704.75,1.04960735]
[1735098315938,0.26052789,706.81,704.75,1.04960735]
[1735098316239,0.26052789,706.8,704.75,1.04960735]
[1735098316440,0.26052789,706.79,704.82,1.04960735]
[1735098316640,0.28295346,706.83,704.82,1.04960735]
[1735098316641,0.26052789,706.78,704.82,1.04960735]
[1735098316840,0.26052789,706.77,704.82,1.04960735]
[1735098317140,0.26052789,706.76,704.82,1.04960735]
[1735098317441,0.26052789,706.75,704.82,1.04960735]
[1735098317741,0.26055491,706.74,704.79,1.04960735]
[1735098317940,0.26055491,706.73,704.79,1.04960735]
[1735098318140,0.26055491,706.72,704.79,1.04960735]
[1735098318341,0.26055491,706.71,704.79,1.04960735]